lending/lending_fUSD_20240411
["ID","MTS","AMOUNT","RATE_DAILY","PERIOD"]
[322197156,1712869943800,-500.0,0.00028493,2]
[322197157,1712869943809,-500.0,0.00028493,2]
[322197158,1712869943819,-1870.66,0.00028493,2]
[322197159,1712869943828,-921.94,0.00028493,2]
[322197160,1712869943837,-500.0,0.00028493,2]
[322197161,1712869943846,-1288.35,0.00028493,2]
[322197162,1712869943855,-500.0,0.00028493,2]
[322197163,1712869943864,-670.72,0.00028493,2]
[322197164,1712869943873,-500.0,0.00028493,2]
[322197165,1712869943882,-1052.23,0.00028493,2]
[322197166,1712869943891,-500.0,0.00028493,2]
[322197167,1712869943900,-1720.31,0.00028493,2]
[322197168,1712869943909,-500.0,0.00028493,2]
[322197169,1712869943918,-500.0,0.00028493,2]
[322197170,1712869943927,-500.0,0.00028493,2]
[322197171,1712869943937,-2622.22,0.00028493,2]
[322197172,1712869943946,-500.0,0.00028493,2]
[322197173,1712869943955,-1850.14,0.00028493,2]
[322197174,1712869943964,-500.0,0.00028493,2]
[322197175,1712869943973,-500.0,0.00028493,2]
[322197176,1712869943982,-500.0,0.00028493,2]
[322197177,1712869943991,-230.68343788,0.00028493,2]
[322197178,1712869944001,-500.0,0.00028493,2]
[322197179,1712869944010,-500.0,0.00028493,2]
[322197180,1712869944018,-300.0,0.00028493,2]
[322197181,1712869944027,-500.0,0.00028493,2]
[322197182,1712869944036,-500.0,0.00028493,2]
[322197183,1712869944046,-869.29,0.00028493,2]
[322197184,1712869944055,-500.0,0.00028493,2]
[322197185,1712869944065,-500.0,0.00028493,2]
[322197186,1712869944074,-722.11,0.00028493,2]
[322197187,1712869944083,-933.06,0.00028493,2]
[322197188,1712869944092,-500.0,0.00028493,2]
[322197189,1712869944102,-500.0,0.00028493,2]
[322197190,1712869944111,-1172.68,0.00028493,2]
[322197191,1712869944121,-500.0,0.00028493,2]
[322197192,1712869944130,-500.0,0.00028493,2]
[322197193,1712869944140,-500.0,0.00028493,2]
[322197194,1712869944149,-155.0100981,0.00028493,2]
[322197195,1712869944158,-1203.46,0.00028493,2]
[322197196,1712869944167,-993.8,0.00028493,2]
[322197197,1712869944176,-500.0,0.00028493,2]
[322197198,1712869944185,-500.0,0.00028493,2]
[322197199,1712869944194,-226.27105714,0.00028493,2]
[322197200,1712869944204,-500.0,0.00028493,2]
[322197201,1712869944213,-150.0,0.00028493,2]
[322197202,1712869944223,-295.34547178,0.00028493,2]
[322197203,1712869944232,-1318.86,0.00028493,2]
[322197204,1712869944241,-879.12,0.00028493,2]
[322197205,1712869944251,-1664.67,0.00028493,2]
[322197206,1712869944260,-500.0,0.00028493,2]
[322197207,1712869944269,-500.0,0.00028493,2]
[322197208,1712869944279,-553.15,0.00028493,2]
[322197209,1712869944288,-916.81,0.00028493,2]
[322197210,1712869944298,-923.4,0.00028493,2]
[322197211,1712869944307,-1597.09,0.00028493,2]
[322197212,1712869944316,-500.0,0.00028493,2]
[322197213,1712869944326,-500.0,0.00028493,2]
[322197214,1712869944335,-500.0,0.00028493,2]
[322197215,1712869944344,-500.0,0.00028493,2]
[322197216,1712869944354,-500.0,0.00028493,2]
[322197217,1712869944363,-500.0,0.00028493,2]
[322197218,1712869944372,-1225.4,0.00028493,2]
[322197219,1712869944384,-500.0,0.00028493,2]
[322197220,1712869944394,-500.0,0.00028493,2]
[322197221,1712869944403,-1736.6,0.00028493,2]
[322197222,1712869944412,-1687.78,0.00028493,2]
[322197223,1712869944422,-533.65,0.00028493,2]
[322197224,1712869944431,-500.0,0.00028493,2]
[322197225,1712869944440,-500.0,0.00028493,2]
[322197226,1712869944450,-500.0,0.00028493,2]
[322197227,1712869944461,-892.21,0.00028493,2]
[322197228,1712869944471,-500.0,0.00028493,2]
[322197229,1712869944480,-698.09,0.00028493,2]
[322197230,1712869944489,-500.0,0.00028493,2]
[322197231,1712869944498,-500.0,0.00028493,2]
[322197232,1712869944508,-500.0,0.00028493,2]
[322197233,1712869944517,-460.95133237,0.00028493,2]
[322197234,1712869944526,-500.0,0.00028493,2]
[322197235,1712869944536,-1618.97,0.00028493,2]
[322197236,1712869944545,-500.0,0.00028493,2]
[322197237,1712869944554,-500.0,0.00028493,2]
[322197238,1712869944564,-500.0,0.00028493,2]
[322197239,1712869944573,-500.0,0.00028493,2]
[322197240,1712869944582,-998.14,0.00028493,2]
[322197241,1712869944591,-500.0,0.00028493,2]
[322197242,1712869944600,-500.0,0.00028493,2]
[322197243,1712869944609,-1890.51,0.00028493,2]
[322197244,1712869944618,-827.22,0.00028493,2]
[322197245,1712869944628,-500.0,0.00028493,2]
[322197246,1712869944637,-500.0,0.00028493,2]
[322197247,1712869944647,-551.23,0.00028493,2]
[322197248,1712869944656,-500.0,0.00028493,2]
[322197249,1712869944664,-500.0,0.00028493,2]
[322197250,1712869944673,-500.0,0.00028493,2]
[322197251,1712869944683,-500.0,0.00028493,2]
[322197252,1712869944692,-500.0,0.00028493,2]
[322197253,1712869944702,-1646.03,0.00028493,2]
[322197254,1712869944711,-500.0,0.00028493,2]
[322197255,1712869944720,-911.48,0.00028493,2]
[322197256,1712869944730,-767.01,0.00028493,2]
[322197257,1712869944739,-1116.76,0.00028493,2]
[322197258,1712869944749,-402.72901882,0.00028493,2]
[322197259,1712869944758,-500.0,0.00028493,2]
[322197260,1712869944767,-570.82,0.00028493,2]
[322197261,1712869944776,-1022.77,0.00028493,2]
[322197262,1712869944786,-500.0,0.00028493,2]
[322197263,1712869944795,-500.0,0.00028493,2]
[322197264,1712869944805,-831.5,0.00028493,2]
[322197265,1712869944814,-680.97,0.00028493,2]
[322197266,1712869944824,-500.0,0.00028493,2]
[322197267,1712869944834,-752.98,0.00028493,2]
[322197268,1712869944843,-500.0,0.00028493,2]
[322197269,1712869944853,-500.0,0.00028493,2]
[322197270,1712869944862,-500.0,0.00028493,2]
[322197271,1712869944872,-500.0,0.00028493,2]
[322197272,1712869944881,-500.0,0.00028493,2]
[322197273,1712869944891,-500.0,0.00028493,2]
[322197274,1712869944901,-814.1,0.00028493,2]
[322197275,1712869944910,-1499.79,0.00028493,2]
[322197276,1712869944920,-7400.19,0.00028493,2]
[322197277,1712869944929,-500.0,0.00028493,2]
[322197278,1712869944938,-500.0,0.00028493,2]
[322197279,1712869944948,-1023.14,0.00028493,2]
[322197280,1712869944957,-700.72,0.00028493,2]
[322197281,1712869944966,-500.0,0.00028493,2]
[322197282,1712869944976,-950.09,0.00028493,2]
[322197283,1712869944986,-1871.77,0.00028493,2]
[322197284,1712869944995,-500.0,0.00028493,2]
[322197285,1712869945004,-3724.71,0.00028493,2]
[322197286,1712869945013,-5395.14,0.00028493,2]
[322197287,1712869945022,-1464.27,0.00028493,2]
[322197288,1712869945031,-978.66,0.00028493,2]
[322197289,1712869945040,-500.0,0.00028493,2]
[322197290,1712869945049,-693.58,0.00028493,2]
[322197291,1712869945058,-984.51,0.00028493,2]
[322197292,1712869945066,-500.0,0.00028493,2]
[322197293,1712869945075,-500.0,0.00028493,2]
[322197294,1712869945085,-500.0,0.00028493,2]
[322197295,1712869945094,-500.0,0.00028493,2]
[322197296,1712869945103,-500.0,0.00028493,2]
[322197297,1712869945113,-500.0,0.00028493,2]
[322197298,1712869945122,-500.0,0.00028493,2]
[322197299,1712869945132,-287.22414775,0.00028493,2]
[322197300,1712869945143,-500.0,0.00028493,2]
[322197301,1712869945153,-4620.04,0.00028493,2]
[322197302,1712869945162,-500.0,0.00028493,2]
[322197303,1712869945171,-934.17,0.00028493,2]
[322197304,1712869945181,-1300.92,0.00028493,2]
[322197305,1712869945191,-1543.03,0.00028493,2]
[322197306,1712869945200,-5425.41,0.00028493,2]
[322197307,1712869945210,-500.0,0.00028493,2]
[322197308,1712869945219,-500.0,0.00028493,2]
[322197309,1712869945228,-500.0,0.00028493,2]
[322197310,1712869945238,-1214.31,0.00028493,2]
[322197311,1712869945247,-500.0,0.00028493,2]
[322197312,1712869945257,-788.68,0.00028493,2]
[322197313,1712869945266,-500.0,0.00028493,2]
[322197314,1712869945275,-613.33,0.00028493,2]
[322197315,1712869945285,-500.0,0.00028493,2]
[322197316,1712869945295,-500.0,0.00028493,2]
[322197317,1712869945304,-827.37,0.00028493,2]
[322197318,1712869945313,-1948.7,0.00028493,2]
[322197319,1712869945323,-500.0,0.00028493,2]
[322197320,1712869945333,-500.0,0.00028493,2]
[322197321,1712869945342,-1593.55,0.00028493,2]
[322197322,1712869945352,-9749.83,0.00028493,2]
[322197323,1712869945361,-500.0,0.00028493,2]
[322197324,1712869945371,-2131.76,0.00028493,2]
[322197325,1712869945383,-500.0,0.00028493,2]
[322197326,1712869945396,-500.0,0.00028493,2]
[322197327,1712869945405,-1560.14,0.00028493,2]
[322197328,1712869945415,-1518.32,0.00028493,2]
[322197329,1712869945424,-500.0,0.00028493,2]
[322197330,1712869945434,-661.44,0.00028493,2]
[322197331,1712869945444,-1413.3,0.00028493,2]
[322197332,1712869945453,-500.0,0.00028493,2]
[322197333,1712869945463,-5230.96,0.00028493,2]
[322197334,1712869945473,-2479.01,0.00028493,2]
[322197335,1712869945483,-500.0,0.00028493,2]
[322197336,1712869945493,-500.0,0.00028493,2]
[322197337,1712869945502,-3647.95,0.00028493,2]
[322197338,1712869945512,-1464.2,0.00028493,2]
[322197339,1712869945522,-1527.36,0.00028493,2]
[322197340,1712869945532,-500.0,0.00028493,2]
[322197341,1712869945541,-500.0,0.00028493,2]
[322197342,1712869945552,-500.0,0.00028493,2]
[322197343,1712869945562,-1358.23,0.00028493,2]
[322197344,1712869945571,-1020.16,0.00028493,2]
[322197345,1712869945581,-11162.19,0.00028493,2]
[322197346,1712869945591,-534.99419347,0.00028493,2]
[322197347,1712869945600,-668.8,0.00028493,2]
[322197348,1712869945609,-41084.78,0.00028493,2]
[322197349,1712869945619,-3874.31,0.00028493,2]
[322197350,1712869945628,-500.0,0.00028493,2]
[322197351,1712869945638,-740.63,0.00028493,2]
[322197352,1712869945649,-500.0,0.00028493,2]
[322197353,1712869945658,-500.0,0.00028493,2]
[322197354,1712869945668,-500.0,0.00028493,2]
[322197355,1712869945677,-500.0,0.00028493,2]
[322197356,1712869945687,-548.57,0.00028493,2]
[322197357,1712869945697,-1513.09,0.00028493,2]
[322197358,1712869945707,-7785.82,0.00028493,2]
[322197359,1712869945717,-567.17,0.00028493,2]
[322197360,1712869945727,-500.0,0.00028493,2]
[322197361,1712869945737,-8421.98,0.00028493,2]
[322197362,1712869945747,-3631.93,0.00028493,2]
[322197363,1712869945757,-3207.81,0.00028493,2]
[322197364,1712869945767,-500.0,0.00028493,2]
[322197365,1712869945777,-12662.48,0.00028493,2]
[322197366,1712869945788,-2311.09,0.00028493,2]
[322197367,1712869945798,-500.0,0.00028493,2]
[322197368,1712869945808,-921.98,0.00028493,2]
[322197369,1712869945818,-401.23,0.00028493,2]
[322197370,1712869945828,-500.0,0.00028493,2]
[322197371,1712869945838,-500.0,0.00028493,2]
[322197372,1712869945848,-500.0,0.00028493,2]
[322197373,1712869945858,-1525.4,0.00028493,2]
[322197374,1712869945868,-500.0,0.00028493,2]
[322197375,1712869945878,-1851.69,0.00028493,2]
[322197376,1712869945889,-875.02,0.00028493,2]
[322197377,1712869945901,-3131.37,0.00028493,2]
[322197378,1712869945911,-7402.21,0.00028493,2]
[322197379,1712869945921,-2709.87,0.00028493,2]
[322197380,1712869945931,-500.0,0.00028493,2]
[322197381,1712869945942,-500.0,0.00028493,2]
[322197382,1712869945952,-500.0,0.00028493,2]
[322197383,1712869945962,-500.0,0.00028493,2]
[322197384,1712869945972,-1503.27,0.00028493,2]
[322197385,1712869945982,-2499.54,0.00028493,2]
[322197386,1712869945993,-650.21,0.00028493,2]
[322197387,1712869946002,-5388.34,0.00028493,2]
[322197388,1712869946012,-1676.04,0.00028493,2]
[322197389,1712869946022,-500.0,0.00028493,2]
[322197390,1712869946032,-2309.38,0.00028493,2]
[322197391,1712869946042,-643.01,0.00028493,2]
[322197392,1712869946052,-5653.29,0.00028493,2]
[322197393,1712869946062,-1703.86,0.00028493,2]
[322197394,1712869946072,-928.47,0.00028493,2]
[322197395,1712869946082,-790.7,0.00028493,2]
[322197396,1712869946092,-500.0,0.00028493,2]
[322197397,1712869946102,-500.0,0.00028493,2]
[322197398,1712869946113,-500.0,0.00028493,2]
[322197399,1712869946123,-2381.75,0.00028493,2]
[322197400,1712869946133,-852.74,0.00028493,2]
[322197401,1712869946144,-2994.14,0.00028493,2]
[322197402,1712869946155,-500.0,0.00028493,2]
[322197403,1712869946165,-500.0,0.00028493,2]
[322197404,1712869946175,-4680.33,0.00028493,2]
[322197405,1712869946185,-21256.33,0.00028493,2]
[322197406,1712869946196,-989.07,0.00028493,2]
[322197407,1712869946206,-2204.86,0.00028493,2]
[322197408,1712869946216,-500.0,0.00028493,2]
[322197409,1712869946227,-5675.36,0.00028493,2]
[322197410,1712869946237,-660.51,0.00028493,2]
[322197411,1712869946248,-2867.21,0.00028493,2]
[322197412,1712869946258,-500.0,0.00028493,2]
[322197413,1712869946268,-1346.35,0.00028493,2]
[322197414,1712869946278,-500.0,0.00028493,2]
[322197415,1712869946288,-500.0,0.00028493,2]
[322197416,1712869946299,-500.0,0.00028493,2]
[322197417,1712869946309,-355.84,0.00028493,2]
[322197418,1712869946319,-2960.74,0.00028493,2]
[322197419,1712869946330,-887.19,0.00028493,2]
[322197420,1712869946340,-1179.12,0.00028493,2]
[322197421,1712869946351,-500.0,0.00028493,2]
[322197422,1712869946361,-500.0,0.00028493,2]
[322197423,1712869946371,-1283.97,0.00028493,2]
[322197424,1712869946384,-538.63,0.00028493,2]
[322197425,1712869946395,-872.68,0.00028493,2]
[322197426,1712869946405,-1502.33,0.00028493,2]
[322197427,1712869946416,-10128.26,0.00028493,2]
[322197428,1712869946428,-683.97,0.00028493,2]
[322197429,1712869946438,-623.58,0.00028493,2]
[322197430,1712869946449,-500.0,0.00028493,2]
[322197431,1712869946462,-1185.71,0.00028493,2]
[322197432,1712869946473,-500.0,0.00028493,2]
[322197433,1712869946483,-500.0,0.00028493,2]
[322197434,1712869946494,-2367.24,0.00028493,2]
[322197435,1712869946504,-500.0,0.00028493,2]
[322197436,1712869946514,-1427.1,0.00028493,2]
[322197437,1712869946524,-500.0,0.00028493,2]
[322197438,1712869946535,-500.0,0.00028493,2]
[322197439,1712869946546,-2143.26,0.00028493,2]
[322197440,1712869946556,-2686.26,0.00028493,2]
[322197441,1712869946566,-1106.87,0.00028493,2]
[322197442,1712869946576,-2721.81,0.00028493,2]
[322197443,1712869946586,-3567.1,0.00028493,2]
[322197444,1712869946597,-500.0,0.00028493,2]
[322197445,1712869946607,-3548.97,0.00028493,2]
[322197446,1712869946617,-1844.22,0.00028493,2]
[322197447,1712869946627,-19344.8,0.00028493,2]
[322197448,1712869946638,-537.03,0.00028493,2]
[322197449,1712869946649,-614.23025427,0.00028493,2]
[322197450,1712869946659,-1228.02,0.00028493,2]
[322197451,1712869946670,-3053.42,0.00028493,2]
[322197452,1712869946680,-4239.16,0.00028493,2]
[322197453,1712869946690,-1745.12,0.00028493,2]
[322197454,1712869946700,-3035.53,0.00028493,2]
[322197455,1712869946710,-500.0,0.00028493,2]
[322197456,1712869946720,-500.0,0.00028493,2]
[322197457,1712869946731,-4808.47,0.00028493,2]
[322197458,1712869946741,-2664.5,0.00028493,2]
[322197459,1712869946752,-1373.93,0.00028493,2]
[322197460,1712869946763,-505.74,0.00028493,2]
[322197461,1712869946774,-3190.86,0.00028493,2]
[322197462,1712869946785,-738.07,0.00028493,2]
[322197463,1712869946795,-1109.77,0.00028493,2]
[322197464,1712869946805,-1400.98,0.00028493,2]
[322197465,1712869946816,-2221.72,0.00028493,2]
[322197466,1712869946827,-500.0,0.00028493,2]
[322197467,1712869946838,-500.0,0.00028493,2]
[322197468,1712869946849,-2263.75,0.00028493,2]
[322197469,1712869947088,-17424.44,0.00028493,2]
[322197470,1712869947124,-1128.64,0.00028493,2]
[322197471,1712869947134,-1502.24,0.00028493,2]
[322197472,1712869947145,-612.74,0.00028493,2]
[322197473,1712869947155,-500.0,0.00028493,2]
[322197474,1712869947164,-17072.27,0.00028493,2]
[322197475,1712869947174,-3052.22,0.00028493,2]
[322197476,1712869947183,-500.0,0.00028493,2]
[322197477,1712869947193,-3640.47,0.00028493,2]
[322197478,1712869947203,-500.0,0.00028493,2]
[322197479,1712869947212,-1957.97,0.00028493,2]
[322197480,1712869947221,-955.9,0.00028493,2]
[322197481,1712869947231,-500.0,0.00028493,2]
[322197482,1712869947241,-500.0,0.00028493,2]
[322197483,1712869947251,-500.0,0.00028493,2]
[322197484,1712869947261,-500.0,0.00028493,2]
[322197485,1712869947270,-5766.3,0.00028493,2]
[322197486,1712869947279,-3659.25,0.00028493,2]
[322197487,1712869947289,-500.0,0.00028493,2]
[322197488,1712869947298,-3575.16,0.00028493,2]
[322197489,1712869947308,-711.78,0.00028493,2]
[322197490,1712869947318,-500.0,0.00028493,2]
[322197491,1712869947327,-7639.5,0.00028493,2]
[322197492,1712869947337,-500.0,0.00028493,2]
[322197493,1712869947346,-1392.31,0.00028493,2]
[322197494,1712869947356,-7389.58,0.00028493,2]
[322197495,1712869947365,-500.0,0.00028493,2]
[322197496,1712869947375,-3014.69,0.00028493,2]
[322197497,1712869947387,-2191.02,0.00028493,2]
[322197498,1712869947397,-5336.03,0.00028493,2]
[322197499,1712869947407,-1051.14,0.00028493,2]
[322197500,1712869947416,-4291.51,0.00028493,2]
[322197501,1712869947426,-500.0,0.00028493,2]
[322197502,1712869947436,-604.03,0.00028493,2]
[322197503,1712869947445,-500.0,0.00028493,2]
[322197504,1712869947455,-52708.74,0.00028493,2]
[322197505,1712869947465,-500.0,0.00028493,2]
[322197506,1712869947475,-3260.75,0.00028493,2]
[322197507,1712869947484,-5115.15,0.00028493,2]
[322197508,1712869947493,-882.87,0.00028493,2]
[322197509,1712869947503,-500.0,0.00028493,2]
[322197510,1712869947513,-500.0,0.00028493,2]
[322197511,1712869947522,-5854.93,0.00028493,2]
[322197512,1712869947532,-8061.26,0.00028493,2]
[322197513,1712869947541,-916.85,0.00028493,2]
[322197514,1712869947551,-745.2,0.00028493,2]
[322197515,1712869947561,-7112.46,0.00028493,2]
[322197516,1712869947570,-500.0,0.00028493,2]
[322197517,1712869947579,-500.0,0.00028493,2]
[322197518,1712869947589,-6099.37,0.00028493,2]
[322197519,1712869947598,-1872.85,0.00028493,2]
[322197520,1712869947607,-1834.17,0.00028493,2]
[322197521,1712869947617,-5187.78,0.00028493,2]
[322197522,1712869947627,-500.0,0.00028493,2]
[322197523,1712869947636,-500.0,0.00028493,2]
[322197524,1712869947646,-500.0,0.00028493,2]
[322197525,1712869947656,-1268.14,0.00028493,2]
[322197526,1712869947666,-1960.92,0.00028493,2]
[322197527,1712869947676,-500.0,0.00028493,2]
[322197528,1712869947685,-3993.87,0.00028493,2]
[322197529,1712869947696,-1940.4,0.00028493,2]
[322197530,1712869947705,-1144.44,0.00028493,2]
[322197531,1712869947714,-30065.72,0.00028493,2]
[322197532,1712869947724,-500.0,0.00028493,2]
[322197533,1712869947734,-3922.38,0.00028493,2]
[322197534,1712869947743,-1318.07,0.00028493,2]
[322197535,1712869947753,-1507.79,0.00028493,2]
[322197536,1712869947762,-7272.96,0.00028493,2]
[322197537,1712869947771,-2185.46,0.00028493,2]
[322197538,1712869947781,-500.0,0.00028493,2]
[322197539,1712869947791,-1894.92,0.00028493,2]
[322197540,1712869947800,-548.77,0.00028493,2]
[322197541,1712869947809,-500.0,0.00028493,2]
[322197542,1712869947818,-500.0,0.00028493,2]
[322197543,1712869947828,-739.67,0.00028493,2]
[322197544,1712869947837,-2576.43,0.00028493,2]
[322197545,1712869947847,-500.0,0.00028493,2]
[322197546,1712869947857,-500.0,0.00028493,2]
[322197547,1712869947866,-752.22,0.00028493,2]
[322197548,1712869947876,-500.0,0.00028493,2]
[322197549,1712869947886,-2674.56,0.00028493,2]
[322197550,1712869947896,-918.8,0.00028493,2]
[322197551,1712869947906,-548.63,0.00028493,2]
[322197552,1712869947915,-636.15,0.00028493,2]
[322197553,1712869947924,-500.0,0.00028493,2]
[322197554,1712869947934,-729.18,0.00028493,2]
[322197555,1712869947943,-763.21,0.00028493,2]
[322197556,1712869947953,-3486.04,0.00028493,2]
[322197557,1712869947962,-8034.42,0.00028493,2]
[322197558,1712869947971,-295.88211228,0.00028493,2]
[322197559,1712869947980,-500.0,0.00028493,2]
[322197560,1712869947989,-500.0,0.00028493,2]
[322197561,1712869947999,-3850.53,0.00028493,2]
[322197562,1712869948008,-544.38,0.00028493,2]
[322197563,1712869948019,-500.0,0.00028493,2]
[322197564,1712869948028,-1687.56,0.00028493,2]
[322197565,1712869948038,-500.0,0.00028493,2]
[322197566,1712869948047,-382.10105717,0.00028493,2]
[322197567,1712869948057,-4101.12,0.00028493,2]
[322197568,1712869948067,-565.51,0.00028493,2]
[322197569,1712869948076,-2084.11,0.00028493,2]
[322197570,1712869948086,-544.26,0.00028493,2]
[322197571,1712869948096,-1782.79,0.00028493,2]
[322197572,1712869948106,-3404.95,0.00028493,2]
[322197573,1712869948115,-510.02,0.00028493,2]
[322197574,1712869948126,-500.0,0.00028493,2]
[322197575,1712869948135,-500.0,0.00028493,2]
[322197576,1712869948144,-2028.74,0.00028493,2]
[322197577,1712869948154,-500.0,0.00028493,2]
[322197578,1712869948164,-500.0,0.00028493,2]
[322197579,1712869948173,-3939.9,0.00028493,2]
[322197580,1712869948182,-733.75,0.00028493,2]
[322197581,1712869948191,-5901.28,0.00028493,2]
[322197582,1712869948200,-2166.88,0.00028493,2]
[322197583,1712869948210,-722.6,0.00028493,2]
[322197584,1712869948219,-500.0,0.00028493,2]
[322197585,1712869948229,-500.0,0.00028493,2]
[322197586,1712869948239,-538.95,0.00028493,2]
[322197587,1712869948248,-3339.86,0.00028493,2]
[322197588,1712869948259,-1774.88,0.00028493,2]
[322197589,1712869948268,-500.0,0.00028493,2]
[322197590,1712869948278,-500.0,0.00028493,2]
[322197591,1712869948287,-896.99,0.00028493,2]
[322197592,1712869948297,-371.77,0.000285,2]
[322197593,1712869948306,-1312.19496,0.000285,2]
[322197594,1712869948315,-154.06513536,0.00028509,2]
[322197595,1712869948325,-8218.5805136,0.00028549,2]
[322197596,1712869948334,-500.0,0.00028609,2]
[322197597,1712869948344,-650.94,0.000287,2]
[322197598,1712869948353,-200.0,0.00028724,7]
[322197599,1712869948362,-500.0,0.00028767,2]
[322197600,1712869948371,-500.0,0.00028767,2]
[322197601,1712869948382,-507.89,0.00028767,2]
[322197602,1712869948392,-590.86,0.00028767,2]
[322197603,1712869948403,-500.0,0.00028767,2]
[322197604,1712869948413,-500.0,0.00028767,2]
[322197605,1712869948423,-805.44,0.00028767,2]
[322197606,1712869948432,-500.0,0.00028767,2]
[322197607,1712869948441,-500.0,0.00028767,2]
[322197608,1712869948451,-629.54,0.00028767,2]
[322197609,1712869948462,-500.0,0.00028767,2]
[322197610,1712869948472,-500.0,0.00028767,2]
[322197611,1712869948481,-500.0,0.00028767,2]
[322197612,1712869948490,-500.0,0.00028767,2]
[322197613,1712869948499,-765.12,0.00028767,2]
[322197614,1712869948509,-500.0,0.00028767,2]
[322197615,1712869948518,-547.15128704,0.00028767,2]
[322197616,1712869948528,-673.55,0.00028767,2]
[322197617,1712869948537,-500.0,0.00028767,2]
[322197618,1712869948548,-500.0,0.00028767,2]
[322197619,1712869948558,-500.0,0.00028767,2]
[322197620,1712869948567,-500.0,0.00028767,2]
[322197621,1712869948576,-500.0,0.00028767,2]
[322197622,1712869948586,-1055.22,0.00028767,2]
[322197623,1712869948595,-838.26,0.00028767,2]
[322197624,1712869948604,-513.12,0.00028767,2]
[322197625,1712869948613,-500.0,0.00028767,2]
[322197626,1712869948622,-561.16,0.00028767,2]
[322197627,1712869948631,-500.0,0.00028767,2]
[322197628,1712869948641,-520.88,0.00028767,2]
[322197629,1712869948651,-500.0,0.00028767,2]
[322197630,1712869948659,-532.8,0.00028767,2]
[322197631,1712869948668,-500.0,0.00028767,2]
[322197632,1712869948677,-717.66,0.00028767,2]
[322197633,1712869948687,-500.0,0.00028767,2]
[322197634,1712869948696,-500.0,0.00028767,2]
[322197635,1712869948705,-226.35969921,0.00028767,2]
[322197636,1712869948715,-956.54,0.00028767,2]
[322197637,1712869948724,-500.0,0.00028767,2]
[322197638,1712869948733,-527.16,0.00028767,2]
[322197639,1712869948743,-500.0,0.00028767,2]
[322197640,1712869948752,-212.77363264,0.00028767,2]
[322197641,1712869948761,-594.41175081,0.00028767,2]
[322197642,1712869948770,-500.0,0.00028767,2]
[322197643,1712869948779,-500.0,0.00028767,2]
[322197644,1712869948788,-500.0,0.00028767,2]
[322197645,1712869948797,-500.0,0.00028767,2]
[322197646,1712869948806,-500.0,0.00028767,2]
[322197647,1712869948816,-583.53,0.00028767,2]
[322197648,1712869948825,-365.65689737,0.00028767,2]
[322197649,1712869948835,-500.0,0.00028767,2]
[322197650,1712869948845,-500.0,0.00028767,2]
[322197651,1712869948854,-500.0,0.00028767,2]
[322197652,1712869948863,-500.0,0.00028767,2]
[322197653,1712869948873,-794.27,0.00028767,2]
[322197654,1712869948882,-500.0,0.00028767,2]
[322197655,1712869948892,-775.81,0.00028767,2]